fUST/lending_fUST_20240612
["ID","MTS","AMOUNT","RATE_DAILY","PERIOD"]
[329251814,1718201468445,-155.0,0.0001841,2]
[329251816,1718201468458,-1062.1,0.00018454,2]
[329251818,1718201468468,-646.30960967,0.00018474,2]
[329251820,1718201468478,-1302.716023,0.000185,2]
[329251822,1718201468489,-1907.922135,0.000185,2]
[329251824,1718201468500,-301.681606,0.000185,2]
[329251825,1718201468510,-245.978347,0.000185,2]
[329251827,1718201468522,-169.424615,0.000185,2]
[329251829,1718201468535,-508.273843,0.000185,2]
[329251832,1718201468546,-584.445357,0.000185,2]
[329251834,1718201468557,-156.69080923,0.000185,2]
[329251836,1718201468569,-500.0,0.00018519,2]
[329251837,1718201468580,-500.0,0.00018519,2]
[329251840,1718201468592,-600.0,0.00018519,2]
[329251841,1718201468604,-320.0,0.0001852,2]
[329251843,1718201468614,-166.666666,0.00018575,2]
[329251845,1718201468625,-35117.92526742,0.0001859,2]
[329251847,1718201468635,-151.0,0.0001859,2]
[329251849,1718201468646,-51415.35108623,0.00018598,2]
[329251908,1718201469514,-500.0,0.00016438,2]
[329251911,1718201469538,-500.0,0.00016438,2]
[329251913,1718201469550,-500.0,0.00016438,2]
[329251915,1718201469562,-462.2779702,0.00016438,2]
[329251917,1718201469574,-500.0,0.00016712,2]
[329251919,1718201469584,-500.0,0.00016712,2]
[329251920,1718201469594,-151.0,0.00016712,2]
[329251923,1718201469605,-151.0,0.00016867,2]
[329251924,1718201469615,-151.0,0.00016985,2]
[329251927,1718201469626,-151.0,0.00016985,2]
[329251929,1718201469637,-151.0,0.00016986,2]
[329251930,1718201469647,-151.0,0.00016986,2]
[329251932,1718201469658,-629.01,0.00016986,2]
[329251934,1718201469669,-151.0,0.00016986,2]
[329251936,1718201469680,-151.0,0.00016986,2]
[329251938,1718201469690,-151.0,0.00017259,2]
[329251940,1718201469700,-151.0,0.0001726,2]
[329251944,1718201469735,-151.0,0.0001726,2]
[329251945,1718201469746,-151.0,0.0001726,2]
[329251947,1718201469759,-248.23675,0.00017532,2]
[329251949,1718201469771,-151.0,0.00017808,2]
[329251951,1718201469793,-14414.27073186,0.00018598,2]
[329254130,1718201561260,155.00155002,9.999e-05,2]
[329254154,1718201733906,186.21867209,0.00016712,15]
[329254158,1718201853926,186.21867208,0.00016712,15]
[329254171,1718202107165,-24000.0,0.00015023,2]
[329254172,1718202187912,1911.81558845,9.999e-05,2]
[329254173,1718202197639,150.0,0.000211,30]
[329254174,1718202226861,-890.0,0.00015023,2]
[329254175,1718202226886,-300.88693981,0.00015023,2]
[329254176,1718202226914,-2100.6780329,0.00015023,2]
[329254177,1718202226939,-16228.7811546,0.00015023,2]
[329254178,1718202226965,-291.83607441,0.00015023,2]
[329254179,1718202226994,-183.752177,0.00015084,2]
[329254182,1718202354892,4.06562128,0.00015084,2]
[329254364,1718202648810,-9592.69620331,0.00014624,2]
[329254366,1718202648832,-300.0,0.00014625,2]
[329254369,1718202648849,-300.0,0.00014625,2]
[329254372,1718202648883,-839.7688536,0.0001463,2]
[329254375,1718202648896,-183.752177,0.00014689,2]
[329254378,1718202648951,-347.2585269,0.00015044,2]
[329254380,1718202648997,-2096.61241162,0.00015084,2]
[329254382,1718202649022,-291.83607441,0.00015084,2]
[329254383,1718202649036,-300.88693981,0.00015084,2]
[329254385,1718202649050,-308.34068653,0.00015778,2]
[329254388,1718202649068,-420.0,0.00016012,2]
[329254390,1718202649091,-420.0,0.00016088,2]
[329254392,1718202649106,-417.62065455,0.00016338,2]
[329254394,1718202649133,-946.03043459,0.00016436,2]
[329254396,1718202649174,-2037.29149856,0.00016436,2]
[329254398,1718202649186,-553.79593019,0.00016436,2]
[329254400,1718202649198,-523.37604419,0.00016436,2]
[329254402,1718202649216,-155.01705188,0.00016436,2]
[329254404,1718202649232,-181.97694132,0.00016436,2]
[329254406,1718202649268,-526.56368195,0.00016436,2]
[329254408,1718202649286,-4565.51691443,0.00016437,2]
[329254410,1718202649321,-500.0,0.00016438,2]
[329254412,1718202649338,-500.0,0.00016438,2]
[329254414,1718202649359,-301.67913762,0.00016438,2]
[329254416,1718202649379,-515.46654284,0.00016438,2]
[329254418,1718202649404,-500.0,0.00016438,2]
[329254420,1718202649418,-500.0,0.00016438,2]
[329254422,1718202649432,-500.0,0.00016438,2]
[329254424,1718202649445,-523.20442661,0.00016438,2]
[329254425,1718202649456,-500.0,0.00016438,2]
[329254428,1718202649478,-500.0,0.00016438,2]
[329254430,1718202649494,-500.0,0.00016438,2]
[329254431,1718202649517,-260.89556566,0.00016438,2]
[329254432,1718202649532,-500.0,0.00016438,2]
[329254434,1718202649557,-500.0,0.00016438,2]
[329254437,1718202649580,-500.0,0.00016438,2]
[329254438,1718202649591,-500.0,0.00016438,2]
[329254440,1718202649603,-500.0,0.00016438,2]
[329254442,1718202649614,-500.0,0.00016438,2]
[329254444,1718202649647,-500.0,0.00016438,2]
[329254446,1718202649676,-500.0,0.00016438,2]
[329254447,1718202649695,-500.0,0.00016438,2]
[329254450,1718202649713,-501.19333907,0.00016438,2]
[329254452,1718202649727,-500.0,0.00016438,2]
[329254453,1718202649740,-502.89806245,0.00016438,2]
[329254456,1718202649761,-500.0,0.00016438,2]
[329254458,1718202649777,-500.0,0.00016438,2]
[329254460,1718202649788,-500.0,0.00016438,2]
[329254462,1718202649809,-500.96478748,0.00016438,2]
[329254464,1718202649829,-500.0,0.00016438,2]
[329254466,1718202649840,-500.0,0.00016438,2]
[329254468,1718202649860,-533.71,0.00016438,2]
[329254470,1718202649874,-500.0,0.00016438,2]
[329254472,1718202649890,-500.0,0.00016438,2]
[329254474,1718202649903,-500.0,0.00016438,2]
[329254476,1718202649925,-500.0,0.00016438,2]
[329254479,1718202649955,-500.0,0.00016438,2]
[329254481,1718202649981,-500.0,0.00016438,2]
[329254483,1718202650004,-261.7167289,0.00016438,2]
[329254485,1718202650023,-500.0,0.00016438,2]
[329254487,1718202650044,-500.0,0.00016438,2]
[329254489,1718202650057,-500.0,0.00016438,2]
[329254490,1718202650069,-500.0,0.00016438,2]
[329254492,1718202650091,-505.8504904,0.00016438,2]
[329254494,1718202650105,-500.0,0.00016438,2]
[329254496,1718202650116,-500.0,0.00016438,2]
[329254498,1718202650144,-500.0,0.00016438,2]
[329254501,1718202650173,-518.89,0.00016438,2]
[329254505,1718202650239,-500.0,0.00016438,2]
[329254506,1718202650250,-500.0,0.00016438,2]
[329254508,1718202650273,-500.0,0.00016438,2]
[329254510,1718202650286,-507.82239086,0.00016438,2]
[329254511,1718202650298,-500.0,0.00016438,2]
[329254513,1718202650318,-500.0,0.00016438,2]
[329254516,1718202650337,-500.0,0.00016438,2]
[329254518,1718202650355,-500.0,0.00016438,2]
[329254521,1718202650369,-500.0,0.00016438,2]
[329254523,1718202650381,-513.26649873,0.00016438,2]
[329254526,1718202650395,-500.0,0.00016438,2]
[329254529,1718202650418,-500.0,0.00016438,2]
[329254532,1718202650443,-500.0,0.00016438,2]
[329254535,1718202650456,-500.0,0.00016438,2]
[329254539,1718202650478,-500.0,0.00016438,2]
[329254541,1718202650494,-500.0,0.00016438,2]
[329254542,1718202650525,-500.0,0.00016438,2]
[329254543,1718202650540,-600.43,0.00016438,2]
[329254545,1718202650560,-500.0,0.00016438,2]
[329254548,1718202650620,-500.0,0.00016438,2]
[329254550,1718202650660,-500.0,0.00016438,2]
[329254552,1718202650683,-500.0,0.00016438,2]
[329254554,1718202650724,-500.0,0.00016438,2]
[329254556,1718202650739,-500.0,0.00016438,2]
[329254559,1718202650757,-500.0,0.00016438,2]
[329254561,1718202650788,-500.0,0.00016438,2]
[329254563,1718202650809,-500.0,0.00016438,2]
[329254566,1718202650848,-500.0,0.00016438,2]
[329254568,1718202650876,-429.94164619,0.00016438,2]
[329254570,1718202650928,-500.0,0.00016438,2]
[329254571,1718202650972,-500.0,0.00016438,2]
[329254572,1718202650986,-500.0,0.00016438,2]
[329254573,1718202650998,-500.0,0.00016438,2]
[329254574,1718202651019,-500.0,0.00016438,2]
[329254575,1718202651032,-500.0,0.00016438,2]
[329254576,1718202651042,-810.15,0.00016438,2]
[329254577,1718202651062,-500.0,0.00016438,2]
[329254580,1718202651081,-500.0,0.00016438,2]
[329254582,1718202651128,-500.0,0.00016438,2]
[329254584,1718202651140,-609.89,0.00016438,2]
[329254586,1718202651161,-502.7999317,0.00016438,2]
[329254587,1718202651179,-500.0,0.00016438,2]
[329254589,1718202651189,-500.0,0.00016438,2]
[329254590,1718202651200,-500.0,0.00016438,2]
[329254593,1718202651225,-478.98554951,0.00016438,2]
[329254595,1718202651241,-500.0,0.00016438,2]
[329254597,1718202651256,-500.0,0.00016438,2]
[329254599,1718202651275,-500.0,0.00016438,2]
[329254600,1718202651289,-500.0,0.00016438,2]
[329254602,1718202651313,-411.6235829,0.00016438,2]
[329254604,1718202651331,-500.0,0.00016438,2]
[329254607,1718202651368,-500.0,0.00016438,2]
[329254609,1718202651380,-339.09202335,0.00016438,2]
[329254611,1718202651417,-500.0,0.00016438,2]
[329254613,1718202651442,-500.0,0.00016438,2]
[329254616,1718202651472,-754.08,0.00016438,2]
[329254617,1718202651483,-503.46470665,0.00016438,2]
[329254619,1718202651499,-500.0,0.00016438,2]
[329254621,1718202651513,-500.0,0.00016438,2]
[329254623,1718202651533,-500.0,0.00016438,2]
[329254625,1718202651574,-500.0,0.00016438,2]
[329254627,1718202651584,-500.0,0.00016438,2]
[329254629,1718202651595,-500.0,0.00016438,2]
[329254632,1718202651649,-500.0,0.00016438,2]
[329254635,1718202651701,-500.0,0.00016438,2]
[329254637,1718202651721,-500.0,0.00016438,2]
[329254638,1718202651732,-500.0,0.00016438,2]
[329254640,1718202651746,-500.0,0.00016438,2]
[329254642,1718202651771,-500.0,0.00016438,2]
[329254644,1718202651792,-500.0,0.00016438,2]
[329254646,1718202651807,-501.86105742,0.00016438,2]
[329254649,1718202651825,-512.11720004,0.00016438,2]
[329254651,1718202651850,-500.0,0.00016438,2]
[329254652,1718202651862,-500.0,0.00016438,2]
[329254654,1718202651881,-500.0,0.00016438,2]
[329254656,1718202651898,-951.59,0.00016438,2]
[329254658,1718202651913,-183.79379664,0.00016438,2]
[329254660,1718202651928,-500.0,0.00016438,2]
[329254662,1718202651940,-500.0,0.00016438,2]
[329254664,1718202651952,-500.0,0.00016438,2]
[329254667,1718202651985,-500.0,0.00016438,2]
[329254676,1718202652152,-502.24837034,0.00016438,2]
[329254677,1718202652168,-500.0,0.00016438,2]
[329254679,1718202652182,-500.0,0.00016438,2]
[329254681,1718202652193,-500.0,0.00016438,2]
[329254683,1718202652207,-500.0,0.00016438,2]
[329254685,1718202652238,-500.0,0.00016438,2]
[329254686,1718202652261,-500.0,0.00016438,2]
[329254688,1718202652285,-391.79730431,0.00016438,2]
[329254690,1718202652313,-500.0,0.00016438,2]
[329254692,1718202652331,-500.0,0.00016438,2]
[329254693,1718202652344,-500.0,0.00016438,2]
[329254695,1718202652360,-500.0,0.00016438,2]
[329254696,1718202652373,-500.0,0.00016438,2]
[329254698,1718202652402,-500.0,0.00016438,2]
[329254700,1718202652414,-500.0,0.00016438,2]
[329254702,1718202652433,-500.0,0.00016438,2]
[329254704,1718202652445,-500.0,0.00016438,2]
[329254706,1718202652456,-500.0,0.00016438,2]
[329254707,1718202652467,-443.91781131,0.00016438,2]
[329254709,1718202652483,-500.0,0.00016438,2]
[329254711,1718202652496,-500.0,0.00016438,4]
[329254712,1718202652509,-250.0,0.00016438,2]
[329254714,1718202652530,-500.0,0.00016438,2]
[329254716,1718202652542,-515.9485462,0.00016438,2]
[329254717,1718202652561,-500.0,0.00016438,2]
[329254719,1718202652573,-460.09871168,0.00016438,2]
[329254721,1718202652585,-500.0,0.00016438,2]
[329254723,1718202652602,-500.0,0.00016438,2]
[329254724,1718202652614,-500.0,0.00016438,2]
[329254726,1718202652657,-500.0,0.00016438,2]
[329254728,1718202652676,-500.0,0.00016438,2]
[329254730,1718202652695,-500.0,0.00016438,2]
[329254732,1718202652716,-500.0,0.00016438,2]
[329254734,1718202652728,-500.0,0.00016438,2]
[329254736,1718202652754,-500.0,0.00016438,2]
[329254737,1718202652766,-500.0,0.00016438,2]
[329254739,1718202652790,-500.0,0.00016438,2]
[329254741,1718202652802,-500.0,0.00016438,2]
[329254743,1718202652815,-500.0,0.00016438,2]
[329254745,1718202652827,-500.0,0.00016438,2]
[329254747,1718202652844,-653.19,0.00016438,2]
[329254749,1718202652865,-940.41,0.00016438,2]
[329254751,1718202652878,-500.0,0.00016438,2]
[329254753,1718202652892,-500.0,0.00016438,2]
[329254755,1718202652915,-908.76,0.00016438,2]
[329254756,1718202652931,-500.0,0.00016438,2]
[329254759,1718202652947,-1004.92,0.00016438,2]
[329254761,1718202652961,-500.0,0.00016438,2]
[329254762,1718202652990,-500.0,0.00016438,2]
[329254764,1718202653001,-500.0,0.00016438,2]
[329254766,1718202653012,-1609.75,0.00016438,2]
[329254768,1718202653033,-500.0,0.00016438,2]
[329254770,1718202653044,-14697.19,0.00016438,2]
[329254771,1718202653063,-500.0,0.00016438,2]
[329254773,1718202653078,-500.0,0.00016438,2]
[329254775,1718202653089,-500.0,0.00016438,2]
[329254777,1718202653100,-500.0,0.00016438,2]
[329254779,1718202653112,-5427.09,0.00016438,2]
[329254781,1718202653124,-500.0,0.00016438,2]
[329254783,1718202653138,-2134.5,0.00016438,2]
[329254784,1718202653161,-7225.03,0.00016438,2]
[329254786,1718202653175,-500.0,0.00016438,2]
[329254788,1718202653186,-500.0,0.00016438,2]
[329254789,1718202653199,-500.0,0.00016438,2]
[329254791,1718202653210,-501.76106981,0.00016438,2]
[329254793,1718202653221,-500.0,0.00016438,2]
[329254794,1718202653232,-4749.88,0.00016438,2]
[329254796,1718202653244,-500.0,0.00016438,2]
[329254798,1718202653255,-500.0,0.00016438,2]
[329254800,1718202653273,-500.0,0.00016438,2]
[329254802,1718202653283,-500.0,0.00016438,2]
[329254804,1718202653294,-500.0,0.00016438,2]
[329254806,1718202653305,-500.0,0.00016438,2]
[329254808,1718202653318,-500.0,0.00016438,2]
[329254810,1718202653338,-451.78747229,0.00016438,2]
[329254812,1718202653348,-500.0,0.00016438,2]
[329254813,1718202653359,-575.45010021,0.00016438,2]
[329254815,1718202653369,-500.0,0.00016438,2]
[329254818,1718202653388,-536.96,0.00016438,2]
[329254819,1718202653399,-500.0,0.00016438,2]
[329254821,1718202653410,-500.0,0.00016438,2]
[329254824,1718202653434,-501.0544169,0.00016438,2]
[329254826,1718202653448,-500.0,0.00016438,2]
[329254828,1718202653473,-11068.85,0.00016438,2]
[329254830,1718202653488,-500.0,0.00016438,2]
[329254832,1718202653501,-500.0,0.00016438,2]
[329254834,1718202653523,-500.0,0.00016438,2]
[329254836,1718202653540,-500.75836926,0.00016438,2]
[329254837,1718202653555,-365.94999541,0.00016438,2]
[329254839,1718202653572,-500.0,0.00016438,2]
[329254841,1718202653584,-1531.31,0.00016438,2]
[329254843,1718202653599,-500.0,0.00016438,2]
[329254845,1718202653612,-880.17,0.00016438,2]
[329254847,1718202653638,-500.0,0.00016438,2]
[329254848,1718202653660,-500.0,0.00016438,2]
[329254850,1718202653673,-500.0,0.00016438,2]
[329254851,1718202653684,-500.0,0.00016438,2]
[329254853,1718202653697,-735.94,0.00016438,2]
[329254855,1718202653711,-1580.62,0.00016438,2]
[329254857,1718202653724,-500.0,0.00016438,2]
[329254859,1718202653743,-500.0,0.00016438,2]
[329254861,1718202653755,-500.0,0.00016438,2]
[329254862,1718202653768,-500.0,0.00016438,2]
[329254865,1718202653792,-500.0,0.00016438,2]
[329254867,1718202653809,-500.0,0.00016438,2]
[329254869,1718202653820,-1447.79,0.00016438,2]
[329254871,1718202653832,-500.0,0.00016438,2]
[329254873,1718202653848,-500.0,0.00016438,2]
[329254875,1718202653861,-500.0,0.00016438,2]
[329254877,1718202653873,-500.0,0.00016438,2]
[329254879,1718202653894,-500.0,0.00016438,2]
[329254881,1718202653906,-646.7420772,0.00016438,2]
[329254883,1718202653917,-500.0,0.00016438,2]
[329254885,1718202653932,-500.0,0.00016438,2]
[329254887,1718202653956,-500.0,0.00016438,2]
[329254890,1718202654007,-500.0,0.00016438,2]
[329254892,1718202654019,-782.11,0.00016438,2]
[329254893,1718202654036,-500.0,0.00016438,2]
[329254895,1718202654047,-500.0,0.00016438,2]
[329254896,1718202654060,-500.0,0.00016438,2]
[329254898,1718202654077,-543.30073802,0.00016438,2]
[329254900,1718202654091,-500.0,0.00016438,2]
[329254902,1718202654109,-228.45343349,0.00016438,2]
[329254905,1718202654131,-500.0,0.00016438,2]
[329254906,1718202654144,-500.0,0.00016438,2]
[329254908,1718202654155,-1011.14,0.00016438,2]
[329254910,1718202654167,-500.0,0.00016438,2]
[329254912,1718202654190,-4618.06,0.00016438,2]
[329254915,1718202654222,-500.0,0.00016438,2]
[329254917,1718202654236,-500.0,0.00016438,2]
[329254919,1718202654254,-500.0,0.00016438,2]
[329254921,1718202654268,-500.0,0.00016438,2]
[329254923,1718202654286,-500.0,0.00016438,2]
[329254925,1718202654299,-64.94747973,0.00016438,2]
[329254927,1718202654323,-250.0,0.00016438,2]
[329254930,1718202654356,-185.05252027,0.00016438,2]
[329254932,1718202654381,-1409.5,0.00016438,2]
[329254933,1718202654393,-3036.67,0.00016438,2]
[329254935,1718202654413,-500.0,0.00016438,2]
[329254938,1718202654435,-154.98450155,0.000165,2]
[329254939,1718202654447,-417.62065453,0.00016681,2]
[329254941,1718202654461,-500.0,0.00016711,2]
[329254943,1718202654483,-500.0,0.00016711,2]
[329254945,1718202654495,-500.0,0.00016711,2]
[329254947,1718202654514,-500.0,0.00016711,2]
[329254949,1718202654527,-500.0,0.00016712,2]
[329254950,1718202654540,-503.78921423,0.00016712,2]
[329254952,1718202654557,-500.0,0.00016712,2]
[329254953,1718202654570,-638.48058846,0.00016712,2]
[329254956,1718202654605,-500.0,0.00016712,2]
[329254959,1718202654644,-500.0,0.00016712,2]
[329254962,1718202654668,-533.71,0.00016712,2]
[329254964,1718202654698,-500.0,0.00016712,2]
[329254967,1718202654723,-500.0,0.00016712,2]
[329254969,1718202654751,-500.0,0.00016712,2]
[329254971,1718202654772,-500.0,0.00016712,2]
[329254973,1718202654794,-500.0,0.00016712,2]
[329254976,1718202654815,-500.0,0.00016712,2]
[329254977,1718202654835,-500.0,0.00016712,2]
[329254980,1718202654852,-500.0,0.00016712,2]
[329254983,1718202654887,-518.89,0.00016712,2]
[329254985,1718202654901,-264.33269807,0.00016712,2]
[329254987,1718202654920,-500.0,0.00016712,2]
[329254989,1718202654935,-500.0,0.00016712,2]
[329254991,1718202654949,-500.0,0.00016712,2]
[329254993,1718202654964,-500.0,0.00016712,2]
[329254995,1718202654979,-500.0,0.00016712,2]
[329254998,1718202654995,-500.0,0.00016712,2]
[329255000,1718202655012,-500.0,0.00016712,2]
[329255002,1718202655031,-504.24434647,0.00016712,2]
[329255004,1718202655045,-500.0,0.00016712,2]
[329255007,1718202655066,-500.0,0.00016712,2]
[329255009,1718202655079,-600.43,0.00016712,2]
[329255011,1718202655091,-500.0,0.00016712,2]
[329255013,1718202655106,-500.0,0.00016712,2]
[329255015,1718202655118,-500.0,0.00016712,2]
[329255017,1718202655132,-500.0,0.00016712,2]
[329255019,1718202655145,-395.63674927,0.00016712,2]
[329255021,1718202655159,-500.0,0.00016712,2]
[329255024,1718202655173,-500.0,0.00016712,2]
[329255026,1718202655186,-810.15,0.00016712,2]
[329255028,1718202655198,-500.0,0.00016712,2]
[329255029,1718202655210,-500.0,0.00016712,2]
[329255032,1718202655223,-609.89,0.00016712,2]
[329255034,1718202655235,-500.0,0.00016712,2]
[329255036,1718202655247,-500.0,0.00016712,2]
[329255038,1718202655260,-754.08,0.00016712,2]
[329255040,1718202655273,-500.0,0.00016712,2]
[329255042,1718202655287,-500.0,0.00016712,2]
[329255044,1718202655299,-500.0,0.00016712,2]
[329255047,1718202655311,-500.0,0.00016712,2]
[329255049,1718202655325,-509.48965602,0.00016712,2]
[329255051,1718202655339,-500.0,0.00016712,2]
[329255054,1718202655353,-951.59,0.00016712,2]
[329255056,1718202655368,-500.0,0.00016712,2]
[329255058,1718202655380,-404.57647126,0.00016712,2]
[329255060,1718202655392,-506.16298713,0.00016712,2]
[329255062,1718202655405,-500.0,0.00016712,2]
[329255064,1718202655417,-500.0,0.00016712,2]
[329255065,1718202655431,-500.0,0.00016712,2]
[329255066,1718202655453,-500.0,0.00016712,2]
[329255067,1718202655474,-500.0,0.00016712,2]
[329255068,1718202655494,-500.0,0.00016712,2]
[329255069,1718202655511,-500.0,0.00016712,2]
[329255070,1718202655524,-500.0,0.00016712,2]
[329255071,1718202655543,-500.0,0.00016712,2]
[329255072,1718202655565,-180.8659868,0.00016712,2]
[329255073,1718202655585,-484.95344661,0.00016712,2]
[329255074,1718202655610,-19.56151128,0.00016712,2]
[329255075,1718202655642,-500.0,0.00016712,4]
[329255076,1718202655660,-250.0,0.00016712,2]
[329255077,1718202655673,-500.0,0.00016712,2]
[329255079,1718202655688,-500.0,0.00016712,2]
[329255080,1718202655704,-500.0,0.00016712,2]
[329255082,1718202655715,-500.0,0.00016712,2]
[329255085,1718202655729,-500.0,0.00016712,2]
[329255087,1718202655743,-500.0,0.00016712,2]
[329255089,1718202655757,-500.0,0.00016712,2]
[329255091,1718202655769,-653.19,0.00016712,2]
[329255093,1718202655782,-940.41,0.00016712,2]
[329255095,1718202655798,-500.0,0.00016712,2]
[329255097,1718202655810,-908.76,0.00016712,2]
[329255099,1718202655828,-1004.92,0.00016712,2]
[329255101,1718202655844,-252.03967334,0.00016712,2]
[329255102,1718202655865,-500.0,0.00016712,2]
[329255105,1718202655880,-230.1438898,0.00016712,2]
[329255107,1718202655905,-269.8561102,0.00016712,2]
[329255109,1718202655917,-1609.75,0.00016712,2]
[329255111,1718202655937,-503.39915285,0.00016712,2]
[329255113,1718202655952,-14697.19,0.00016712,2]
[329255115,1718202655972,-500.0,0.00016712,2]
[329255117,1718202655985,-500.0,0.00016712,2]
[329255119,1718202655999,-5427.09,0.00016712,2]
[329255121,1718202656011,-500.0,0.00016712,2]
[329255123,1718202656024,-2134.5,0.00016712,2]
[329255125,1718202656037,-7225.03,0.00016712,2]
[329255128,1718202656049,-500.0,0.00016712,2]
[329255130,1718202656061,-505.30895665,0.00016712,2]
[329255132,1718202656081,-4749.88,0.00016712,2]
[329255134,1718202656093,-500.0,0.00016712,2]
[329255136,1718202656112,-500.0,0.00016712,2]
[329255139,1718202656126,-500.0,0.00016712,2]
[329255141,1718202656138,-500.0,0.00016712,2]
[329255143,1718202656152,-511.82330992,0.00016712,2]
[329255145,1718202656166,-536.96,0.00016712,2]
[329255147,1718202656188,-500.0,0.00016712,2]
[329255149,1718202656202,-500.0,0.00016712,2]
[329255152,1718202656233,-471.67162943,0.00016712,2]
[329255154,1718202656254,-11068.85,0.00016712,2]
[329255156,1718202656269,-500.0,0.00016712,2]
[329255158,1718202656282,-1531.31,0.00016712,2]
[329255159,1718202656295,-500.0,0.00016712,2]
[329255161,1718202656309,-880.17,0.00016712,2]
[329255163,1718202656327,-500.0,0.00016712,2]
[329255165,1718202656348,-500.0,0.00016712,2]
[329255167,1718202656363,-500.0,0.00016712,2]
[329255169,1718202656377,-735.94,0.00016712,2]
[329255172,1718202656392,-1580.62,0.00016712,2]
[329255174,1718202656403,-500.0,0.00016712,2]
[329255176,1718202656416,-500.0,0.00016712,2]
[329255178,1718202656430,-1447.79,0.00016712,2]
[329255180,1718202656441,-500.0,0.00016712,2]
[329255182,1718202656453,-500.0,0.00016712,2]
[329255184,1718202656467,-500.0,0.00016712,2]
[329255186,1718202656481,-500.0,0.00016712,2]
[329255189,1718202656494,-500.0,0.00016712,2]
[329255192,1718202656525,-782.11,0.00016712,2]
[329255194,1718202656538,-500.0,0.00016712,2]
[329255196,1718202656551,-500.0,0.00016712,2]
[329255199,1718202656567,-500.0,0.00016712,2]
[329255201,1718202656584,-1011.14,0.00016712,2]
[329255203,1718202656602,-4618.06,0.00016712,2]
[329255206,1718202656615,-1409.5,0.00016712,2]
[329255208,1718202656644,-3036.67,0.00016712,2]
[329255210,1718202656661,-500.0,0.00016712,2]
[329255212,1718202656678,-151.0,0.000169,2]
[329255214,1718202656697,-339.2339668,0.00016906,2]
[329255216,1718202656710,-153.0,0.00016906,2]
[329255218,1718202656722,-383.1445845,0.00016906,2]
[329255220,1718202656736,-500.0,0.00016985,2]
[329255222,1718202656749,-250.67,0.00016985,2]
[329255224,1718202656761,-500.0,0.00016986,2]
[329255226,1718202656775,-500.0,0.00016986,2]
[329255229,1718202656789,-500.0,0.00016986,2]
[329255231,1718202656801,-500.0,0.00016986,2]
[329255233,1718202656813,-533.71,0.00016986,2]
[329255235,1718202656828,-500.0,0.00016986,2]
[329255237,1718202656841,-500.0,0.00016986,2]
[329255240,1718202656856,-518.89,0.00016986,2]
[329255242,1718202656868,-500.0,0.00016986,2]
[329255244,1718202656897,-500.0,0.00016986,2]
[329255246,1718202656909,-500.0,0.00016986,2]
[329255248,1718202656919,-630.72,0.00016986,2]
[329255250,1718202656932,-600.43,0.00016986,2]
[329255252,1718202656943,-500.0,0.00016986,2]
[329255254,1718202656958,-500.0,0.00016986,2]
[329255256,1718202656972,-500.0,0.00016986,2]